lending/lending_fUSD_20250805
["ID","MTS","AMOUNT","RATE_DAILY","PERIOD"]
[377334896,1754353847102,-2134.63,0.00048949,120]
[377334897,1754353847112,-400.0,0.00048949,120]
[377334898,1754353847125,-1644.85,0.00048949,120]
[377334899,1754353847135,-1021.88,0.00048949,120]
[377334900,1754353847145,-400.0,0.00048949,120]
[377334901,1754353847155,-400.0,0.00048949,120]
[377334902,1754353847165,-400.0,0.00048949,120]
[377334903,1754353847175,-400.0,0.00048949,120]
[377334904,1754353847186,-400.0,0.00048949,120]
[377334905,1754353847196,-400.0,0.00048949,120]
[377334906,1754353847206,-400.0,0.00048949,120]
[377334907,1754353847216,-2766.47,0.00048949,120]
[377334908,1754353847226,-400.0,0.00048949,120]
[377334909,1754353847236,-400.0,0.00048949,120]
[377334910,1754353847246,-400.0,0.00048949,120]
[377334911,1754353847255,-400.0,0.00048949,120]
[377334912,1754353847265,-400.0,0.00048949,120]
[377334913,1754353847275,-400.0,0.00048949,120]
[377334914,1754353847285,-4151.41,0.00048949,120]
[377334915,1754353847295,-400.0,0.00048949,120]
[377334916,1754353847305,-400.0,0.00048949,120]
[377334917,1754353847315,-400.0,0.00048949,120]
[377334918,1754353847324,-400.0,0.00048949,120]
[377334919,1754353847336,-400.0,0.00048949,120]
[377334920,1754353847346,-8314.22,0.00048949,120]
[377334921,1754353847356,-400.0,0.00048949,120]
[377334922,1754353847365,-400.0,0.00048949,120]
[377334923,1754353847375,-400.0,0.00048949,30]
[377334924,1754353847387,-1259.28,0.00048949,120]
[377334925,1754353847397,-400.0,0.00048949,120]
[377334926,1754353847410,-300.0,0.00048949,30]
[377334927,1754353847420,-400.0,0.00048949,120]
[377334928,1754353847430,-400.0,0.00048949,120]
[377334929,1754353847440,-400.0,0.00048949,120]
[377334930,1754353847450,-1012.49,0.00048949,120]
[377334931,1754353847460,-7595.33,0.00048949,120]
[377334932,1754353847470,-3210.93,0.00048949,120]
[377334933,1754353847480,-5696.6,0.00048949,120]
[377334934,1754353847490,-400.0,0.00048949,120]
[377334935,1754353847499,-9923.09,0.00048949,120]
[377334936,1754353847509,-3057.81,0.00048949,120]
[377334937,1754353847520,-5931.74,0.00048949,120]
[377334938,1754353847530,-3729.9,0.00048949,120]
[377334939,1754353847540,-1253.06,0.00048949,120]
[377334940,1754353847550,-4625.56,0.00048949,120]
[377334941,1754353847560,-2582.8,0.00048949,120]
[377334942,1754353847580,-176.354883,0.00048949,120]
[377334943,1754353847592,-3144.98,0.00048949,120]
[377334944,1754353847611,-400.0,0.00048949,120]
[377334945,1754353847620,-1821.32,0.00048949,120]
[377334946,1754353847630,-400.0,0.00048949,120]
[377334947,1754353847640,-7718.590842,0.00048949,120]
[377334948,1754353847650,-7892.042038,0.00048949,120]
[377334949,1754353847661,-9546.72,0.00048949,120]
[377334950,1754353847672,-5894.033858,0.00048949,120]
[377334951,1754353847690,-151.0,0.00048949,14]
[377334952,1754353847704,-269.764426,0.00048949,120]
[377334953,1754353847715,-5249.9,0.00048949,120]
[377334954,1754353847726,-151.0,0.00048949,14]
[377334955,1754353847737,-2189.86,0.00048949,120]
[377334956,1754353847747,-573.78,0.00048949,120]
[377334957,1754353847758,-658.630549,0.00048949,14]
[377334958,1754353847768,-658.630549,0.00048949,14]
[377334959,1754353847781,-2802.14,0.00048949,120]
[377334960,1754353847792,-2986.15,0.00048949,120]
[377334962,1754353847802,-6662.83,0.00048949,120]
[377334963,1754353847815,-8124.47,0.00048949,120]
[377334964,1754353847828,-27690.01,0.00048949,120]
[377334965,1754353847840,-3139.53,0.00048949,120]
[377334966,1754353847852,-887.69,0.00048949,120]
[377334967,1754353847862,-703.23672435,0.0004895,30]
[377334968,1754353847874,-666.0,0.0004895,30]
[377334969,1754353847887,-300.0,0.0004895,30]
[377334970,1754353847899,-666.0,0.0004895,30]
[377334971,1754353847911,-12000.27,0.0004895,120]
[377334972,1754353847923,-400.0,0.0004895,120]
[377334973,1754353847937,-400.0,0.0004895,120]
[377334974,1754353847949,-205.67038288,0.0004895,120]
[377334975,1754353847960,-400.0,0.0004895,2]
[377334976,1754353847972,-400.0,0.0004895,120]
[377334977,1754353847983,-400.0,0.0004895,120]
[377334978,1754353847993,-400.0,0.0004895,120]
[377334979,1754353848004,-400.0,0.0004895,120]
[377334980,1754353848014,-400.0,0.0004895,120]
[377334981,1754353848025,-1273.78,0.0004895,120]
[377334982,1754353848037,-400.0,0.0004895,120]
[377334983,1754353848047,-400.0,0.0004895,120]
[377334984,1754353848058,-400.0,0.0004895,2]
[377334985,1754353848069,-400.0,0.0004895,120]
[377334986,1754353848080,-400.0,0.0004895,120]
[377334987,1754353848091,-341.88483965,0.0004895,120]
[377334988,1754353848102,-400.0,0.0004895,120]
[377334989,1754353848113,-400.0,0.0004895,120]
[377334990,1754353848124,-400.0,0.0004895,120]
[377334991,1754353848135,-1481.59,0.0004895,120]
[377334992,1754353848146,-400.0,0.0004895,120]
[377334993,1754353848158,-400.0,0.0004895,120]
[377334994,1754353848169,-4655.29,0.0004895,120]
[377334995,1754353848180,-400.0,0.0004895,120]
[377334997,1754353848191,-400.0,0.0004895,120]
[377334998,1754353848202,-1184.07,0.0004895,120]
[377334999,1754353848213,-3693.26,0.0004895,120]
[377335000,1754353848225,-400.0,0.0004895,120]
[377335001,1754353848236,-2352.37,0.0004895,120]
[377335002,1754353848246,-400.0,0.0004895,120]
[377335003,1754353848257,-3395.71,0.0004895,120]
[377335004,1754353848268,-400.0,0.0004895,120]
[377335005,1754353848279,-400.0,0.0004895,120]
[377335006,1754353848290,-400.0,0.0004895,120]
[377335007,1754353848301,-3268.17,0.0004895,120]
[377335008,1754353848311,-1425.58,0.0004895,120]
[377335009,1754353848323,-400.0,0.0004895,120]
[377335010,1754353848333,-3247.22,0.0004895,120]
[377335011,1754353848344,-400.0,0.0004895,120]
[377335012,1754353848354,-400.0,0.0004895,120]
[377335013,1754353848364,-4011.21,0.0004895,120]
[377335014,1754353848375,-400.0,0.0004895,120]
[377335015,1754353848385,-400.0,0.0004895,120]
[377335016,1754353848396,-400.0,0.0004895,120]
[377335017,1754353848407,-400.0,0.0004895,120]
[377335018,1754353848418,-2932.42,0.0004895,120]
[377335019,1754353848428,-219.45466519,0.0004895,120]
[377335020,1754353848439,-400.0,0.0004895,120]
[377335021,1754353848449,-1601.45,0.0004895,120]
[377335022,1754353848460,-1066.82,0.0004895,120]
[377335023,1754353848470,-2738.17,0.0004895,120]
[377335024,1754353848480,-400.0,0.0004895,120]
[377335025,1754353848491,-4399.73,0.0004895,120]
[377335026,1754353848502,-2802.57,0.0004895,120]
[377335027,1754353848514,-3060.89,0.0004895,120]
[377335028,1754353848525,-400.0,0.0004895,120]
[377335029,1754353848535,-3093.24,0.0004895,120]
[377335030,1754353848545,-400.0,0.0004895,120]
[377335031,1754353848556,-400.0,0.0004895,120]
[377335032,1754353848567,-400.0,0.0004895,120]
[377335033,1754353848577,-2445.65,0.0004895,120]
[377335034,1754353848587,-400.0,0.0004895,120]
[377335035,1754353848597,-376.26353243,0.0004895,30]
[377335036,1754353848608,-400.0,0.0004895,120]
[377335037,1754353848618,-74.13828696,0.0004895,120]
[377335038,1754353848638,-2294.26171304,0.0004895,120]
[377335039,1754353848649,-222.54864979,0.0004895,120]
[377335040,1754353849657,-2242.76005068,0.00045995,2]
[377335041,1754353849669,-1894.23994932,0.00045995,2]
[377335042,1754353849679,-400.0,0.00048899,120]
[377335043,1754353849688,-207.34773733,0.0004895,120]
[377335044,1754353849697,-442.68,0.0004895,120]
[377335045,1754353849706,-400.0,0.0004895,120]
[377335046,1754353849716,-1300.37231335,0.0004895,120]
[377335047,1754353849730,-1401.71768665,0.0004895,120]
[377335048,1754353849740,-400.0,0.0004895,120]
[377335049,1754353849751,-86.28231335,0.0004895,120]
[377335050,1754353849775,-313.71768665,0.0004895,120]
[377335051,1754353849784,-400.0,0.0004895,120]
[377335052,1754353849794,-400.0,0.0004895,120]
[377335053,1754353849803,-2805.78,0.0004895,120]
[377335054,1754353849814,-400.0,0.0004895,120]
[377335055,1754353849824,-3748.99,0.0004895,120]
[377335056,1754353849834,-400.0,0.0004895,120]
[377335057,1754353849846,-232.3294784,0.0004895,120]
[377335058,1754353849859,-2020.5705216,0.0004895,120]
[377335059,1754353849868,-400.0,0.0004895,120]
[377335060,1754353849878,-400.0,0.0004895,120]
[377335061,1754353849887,-400.0,0.0004895,120]
[377335062,1754353849898,-400.0,0.0004895,120]
[377335063,1754353849909,-2556.14,0.0004895,120]
[377335064,1754353849919,-152.793126,0.0004895,14]
[377335065,1754353849929,-400.0,0.0004895,120]
[377335066,1754353849941,-487.79,0.0004895,120]
[377335067,1754353849951,-400.0,0.0004895,120]
[377335068,1754353849961,-1329.92514713,0.0004895,120]
[377335069,1754353849973,-1450.85485287,0.0004895,120]
[377335070,1754353849984,-854.77,0.0004895,120]
[377335071,1754353849994,-2775.61,0.0004895,120]
[377335072,1754353850003,-237.450864,0.0004895,14]
[377335073,1754353850013,-511.06,0.0004895,120]
[377335074,1754353850024,-151.0,0.0004895,14]
[377335075,1754353850034,-151.0,0.0004895,14]
[377335076,1754353850043,-400.0,0.0004895,120]
[377335077,1754353850053,-500.0,0.0004895,120]
[377335078,1754353850063,-484.1940745,0.0004895,120]
[377335079,1754353850072,-1427.84407325,0.0004895,120]
[377335080,1754353850084,-514.36592675,0.0004895,120]
[377335081,1754353850094,-400.0,0.0004895,120]
[377335082,1754353850104,-151.0,0.0004895,14]
[377335083,1754353850114,-151.0,0.0004895,14]
[377335084,1754353850124,-2795.73,0.0004895,120]
[377335085,1754353850134,-400.0,0.0004895,120]
[377335086,1754353850144,-2283.81,0.0004895,120]
[377335087,1754353850153,-400.0,0.0004895,120]
[377335088,1754353850163,-400.0,0.0004895,120]
[377335089,1754353850172,-151.0,0.0004895,14]
[377335090,1754353850182,-151.0,0.0004895,14]
[377335091,1754353850192,-400.0,0.0004895,120]
[377335092,1754353850202,-400.0,0.0004895,120]
[377335093,1754353850211,-479.64273477,0.0004895,30]
[377335094,1754353850223,-476.76726523,0.0004895,30]
[377335095,1754353850232,-400.0,0.0004895,120]
[377335096,1754353850242,-400.0,0.0004895,120]
[377335097,1754353850252,-2858.56,0.0004895,120]
[377335098,1754353850262,-400.0,0.0004895,120]
[377335099,1754353850271,-404.94744398,0.0004895,120]
[377335100,1754353850281,-400.0,0.0004895,120]
[377335101,1754353850290,-1634.21,0.0004895,120]
[377335102,1754353850300,-151.0,0.0004895,14]
[377335103,1754353850311,-151.0,0.0004895,14]
[377335104,1754353850320,-1667.35552568,0.0004895,120]
[377335105,1754353850332,-1338.05230397,0.0004895,120]
[377335106,1754353850369,-763.39217035,0.0004895,120]
[377335107,1754353850379,-151.0,0.0004895,14]
[377335108,1754353850388,-593.96,0.0004895,120]
[377335109,1754353850398,-151.0,0.0004895,14]
[377335110,1754353850408,-400.0,0.0004895,120]
[377335111,1754353850419,-400.0,0.0004895,120]
[377335112,1754353850430,-151.0,0.0004895,14]
[377335113,1754353850439,-283.39782965,0.0004895,120]
[377335114,1754353850497,-840.75,0.0004895,120]
[377335115,1754353852224,-229.17334552,0.00038359,15]
[377335116,1754353852239,-139.60265127,0.00038359,15]
[377335117,1754353852442,-360.39734873,0.00038359,15]
[377335118,1754353852458,-589.54920664,0.00038359,15]
[377335119,1754353852473,-164.39350463,0.00038359,15]
[377335120,1754353852535,-335.60649537,0.00038359,15]
[377335121,1754353852560,-174.11680958,0.00038359,15]
[377335122,1754353852587,-301.99999952,0.00038359,15]
[377335123,1754353852628,-23.8831909,0.00038359,15]
[377335124,1754353852646,-500.0,0.00038359,15]
[377335125,1754353852664,-500.0,0.00038359,15]
[377335126,1754353852684,-8.02530093,0.00038359,15]
[377335127,1754353852713,-641.65036899,0.00038359,15]
[377335128,1754353852730,-500.0,0.00038359,15]
[377335129,1754353852747,-238.82072824,0.00038359,15]
[377335130,1754353852764,-313.16926808,0.00038359,15]
[377335131,1754353852783,-500.0,0.00038359,15]
[377335132,1754353852803,-888.0,0.00047385,3]
[377335133,1754353852821,-400.0,0.00048899,120]
[377335134,1754353852837,-400.0,0.00048899,120]
[377335135,1754353852853,-3224.92636436,0.00048949,120]
[377335136,1754353852873,-6827.18363564,0.00048949,120]
[377335137,1754353852890,-232.38217035,0.0004895,120]
[377335138,1754353852908,-690.83,0.0004895,120]
[377335139,1754353852923,-743.35,0.0004895,120]
[377335140,1754353852941,-1687.37,0.0004895,120]
[377335141,1754353852958,-404.90494973,0.0004895,120]
[377335142,1754353852974,-999.78,0.0004895,120]
[377335143,1754353852990,-400.0,0.0004895,120]
[377335144,1754353853005,-2429.35,0.0004895,120]
[377335145,1754353853021,-1170.8,0.0004895,120]
[377335146,1754353853037,-3217.93,0.0004895,120]
[377335147,1754353853053,-825.59,0.0004895,120]
[377335148,1754353853068,-780.62,0.0004895,120]
[377335149,1754353853083,-182.36901,0.0004895,14]
[377335150,1754353853098,-1574.27,0.0004895,120]
[377335151,1754353853114,-400.0,0.0004895,120]
[377335152,1754353853129,-2227.28,0.0004895,120]
[377335153,1754353853146,-400.0,0.0004895,120]
[377335154,1754353853161,-1207.02,0.0004895,120]
[377335155,1754353853176,-2694.9,0.0004895,120]
[377335156,1754353853192,-1023.58,0.0004895,120]
[377335157,1754353853206,-400.0,0.0004895,120]
[377335158,1754353853223,-916.07,0.0004895,120]
[377335159,1754353853239,-400.0,0.0004895,120]
[377335160,1754353853255,-4822.2,0.0004895,120]
[377335161,1754353853270,-2965.78,0.0004895,120]
[377335162,1754353853279,-400.0,0.0004895,120]
[377335163,1754353853289,-51.09309077,0.0004895,120]
[377335164,1754353856465,-583.60858051,0.00048899,120]
[377335165,1754353856555,-4048.62141949,0.00048899,120]
[377335166,1754353856566,-500.0,0.00048922,120]
[377335167,1754353856889,-348.90690923,0.0004895,120]
[377335168,1754353856912,-7630.08,0.0004895,120]
[377335169,1754353856923,-2949.68,0.0004895,120]
[377335170,1754353856938,-2586.58,0.0004895,120]
[377335171,1754353856948,-400.0,0.0004895,120]
[377335172,1754353856958,-3315.87,0.0004895,120]
[377335173,1754353856969,-400.0,0.0004895,120]
[377335174,1754353856979,-422.73,0.0004895,120]
[377335175,1754353856989,-6145.42995161,0.0004895,120]
[377335176,1754353857001,-1840.32004839,0.0004895,120]
[377335177,1754353857011,-3353.58,0.0004895,120]
[377335178,1754353857022,-535.04,0.0004895,120]
[377335179,1754353857032,-4046.03,0.0004895,120]
[377335180,1754353857041,-10925.94465271,0.0004895,120]
[377335181,1754353857059,-3236.26534729,0.0004895,120]
[377335182,1754353857068,-400.0,0.0004895,120]
[377335183,1754353857078,-4432.51,0.0004895,120]
[377335184,1754353857088,-400.0,0.0004895,120]
[377335185,1754353857098,-2718.57,0.0004895,120]
[377335186,1754353857107,-400.0,0.0004895,120]
[377335187,1754353857117,-202.11465271,0.0004895,120]
[377335188,1754353857172,-471.97070928,0.0004895,120]
[377335189,1754353857183,-814.16280672,0.0004895,120]
[377335194,1754354054115,150.0,0.00023,2]
[377335217,1754354916969,157.93,0.00013699,2]
[377335227,1754355032040,-157.93,0.00038356,2]
[377335228,1754355032051,-150.0,0.00041332,120]
[377335229,1754355032061,-500.0,0.00041332,120]
[377335230,1754355032070,-164.58,0.00041441,120]
[377335231,1754355032078,-150.0,0.00041924,120]
[377335232,1754355032086,-500.0,0.00042164,2]
[377335233,1754355032095,-151.0,0.00043044,14]
[377335234,1754355032103,-151.0,0.00043044,14]
[377335235,1754355032112,-164.58,0.00043171,120]
[377335236,1754355032120,-150.0,0.00044274,120]
[377335237,1754355032128,-164.58,0.00044901,120]
[377335238,1754355032137,-506.0,0.00045623,10]
[377335239,1754355032146,-441.0,0.00045999,5]
[377335240,1754355032154,-931.55963439,0.00046,8]
[377335241,1754355032164,-528.79681457,0.00046,8]
[377335244,1754355032189,-3539.64355104,0.00046,8]
[377335245,1754355032199,-150.0,0.000461,2]
[377335246,1754355032208,-248.0,0.00046574,5]
[377335247,1754355032217,-291.72728922,0.00046575,120]
[377335248,1754355032225,-1002.3723524,0.000466,2]
[377335249,1754355032234,-303.778,0.00046623,77]
[377335251,1754355032243,-164.58,0.00046632,120]
[377335253,1754355032252,-433.88,0.00046768,120]
[377335255,1754355032262,-1000.0,0.00046811,2]
[377335257,1754355032272,-205.58665197,0.000469,55]
[377335259,1754355032282,-612.84,0.00046928,2]
[377335261,1754355032291,-3516.92330983,0.00046947,2]
[377335264,1754355032307,-848.6229296,0.00046947,2]
[377335268,1754355032341,-266.77126041,0.00046947,2]
[377335270,1754355032355,-8021.35250016,0.00046947,2]
[377335272,1754355032365,-171.69748803,0.00046991,120]
[377335274,1754355032374,-325.98,0.00047059,2]
[377335276,1754355032383,-151.0,0.00047184,14]
[377335277,1754355032392,-151.0,0.00047184,14]
[377335280,1754355032402,-150.0,0.000472,2]
[377335281,1754355032411,-89.78144991,0.00047233,56]
[377335286,1754355032423,-115.80520203,0.00047233,56]
[377335288,1754355032432,-175.0,0.00047339,7]
[377335289,1754355032442,-506.0,0.0004742,10]
[377335290,1754355032452,-161.8,0.00047515,2]
[377335291,1754355032462,-6603.05,0.00047542,2]
[377335292,1754355032472,-999.99,0.00047542,2]
[377335295,1754355032482,-9999.99,0.00047542,2]
[377335298,1754355032491,-711.02,0.00047542,2]
[377335301,1754355032504,-150.99,0.00047542,2]
[377335304,1754355032514,-205.58665194,0.00047567,56]
[377335307,1754355032523,-475.31,0.00047628,120]
[377335309,1754355032533,-800.00002325,0.000479,5]
[377335311,1754355032543,-1537.873,0.000479,5]
[377335315,1754355032553,-205.58665194,0.000479,57]
[377335317,1754355032563,-1088.28849558,0.00048,120]
[377335319,1754355032572,-500.0,0.00048,120]
[377335321,1754355032584,-500.0,0.00048,120]
[377335323,1754355032595,-497.40883618,0.00048,120]
[377335326,1754355032607,-2.59116382,0.00048,120]
[377335327,1754355032617,-500.0,0.00048,120]
[377335330,1754355032628,-500.0,0.00048,120]
[377335331,1754355032639,-500.0,0.00048,120]
[377335334,1754355032649,-295.0,0.00048,120]
[377335335,1754355032659,-160.0,0.00048,120]
[377335337,1754355032671,-326.91908066,0.00048,120]
[377335340,1754355032681,-400.0,0.00048,120]
[377335341,1754355032691,-160.11733068,0.00048118,5]
[377335343,1754355032700,-205.58665194,0.00048233,58]
[377335345,1754355032710,-150.0,0.000483,2]
[377335347,1754355032720,-300.52,0.00048356,30]
[377335348,1754355032729,-164.58,0.00048362,120]
[377335349,1754355032739,-1879.11322,0.0004846,42]
[377335350,1754355032748,-151.0,0.000485,14]
[377335351,1754355032757,-151.0,0.000485,14]
[377335352,1754355032767,-418.82,0.000485,120]
[377335353,1754355032775,-400.0,0.0004855,120]
[377335354,1754355032785,-205.58665194,0.00048567,58]
[377335355,1754355032794,-400.0,0.0004857,120]
[377335356,1754355032805,-400.0,0.0004857,120]
[377335357,1754355032815,-400.0,0.000486,120]
[377335358,1754355032829,-400.0,0.0004866,120]
[377335359,1754355032838,-122.59727889,0.0004867,120]
[377335360,1754355032853,-277.40272111,0.0004867,120]
[377335361,1754355032865,-400.0,0.0004868,120]
[377335362,1754355032876,-400.0,0.0004868,120]
[377335363,1754355032886,-1947.09727889,0.000487,14]
[377335364,1754355032901,-863.55272111,0.000487,14]
[377335365,1754355032911,-67.79524055,0.000487,7]
[377335366,1754355032938,-932.20475945,0.000487,7]
[377335367,1754355032949,-400.0,0.000487,120]
[377335368,1754355032959,-400.0,0.000487,120]
[377335369,1754355032970,-13205.21265603,0.00048733,2]
[377335370,1754355032980,-2006.81,0.0004875,120]
[377335371,1754355032991,-400.0,0.0004877,120]
[377335372,1754355033002,-1759.51511145,0.00048773,15]
[377335373,1754355033011,-400.0,0.0004878,120]
[377335374,1754355033021,-383.21989244,0.00048788,15]
[377335375,1754355033033,-63801.67963997,0.00048788,2]
[377335376,1754355033042,-182.18249473,0.00048789,28]
[377335377,1754355033052,-400.0,0.0004879,120]
[377335378,1754355033061,-400.0,0.0004879,120]
[377335379,1754355033071,-294.02195792,0.00048798,27]
[377335380,1754355033081,-5000.0,0.000488,120]
[377335381,1754355033090,-1361.0,0.000488,120]
[377335382,1754355033100,-1000.0,0.000488,7]
[377335383,1754355033110,-400.0,0.000488,120]
[377335384,1754355033120,-400.0,0.000488,120]
[377335385,1754355033130,-400.0,0.000488,120]
[377335386,1754355033139,-370.5,0.00048806,120]
[377335387,1754355033149,-1759.51511137,0.00048806,15]
[377335388,1754355033159,-43232.97794393,0.00048813,2]
[377335389,1754355033168,-166.52,0.00048815,2]
[377335390,1754355033178,-1759.51511137,0.0004884,15]
[377335391,1754355033188,-5000.0,0.00048842,120]
[377335392,1754355033198,-378.36978119,0.0004885,2]
[377335393,1754355033208,-88888.0,0.0004885,120]
[377335394,1754355033218,-377.95877244,0.00048873,10]
[377335395,1754355033227,-500.0,0.00048873,10]
[377335396,1754355033237,-159.16829463,0.00048873,10]
[377335397,1754355033247,-1759.51511137,0.00048873,15]
[377335398,1754355033257,-21558.9120798,0.00048878,4]
[377335399,1754355033268,-5749.04322128,0.00048878,4]
[377335400,1754355033278,-10060.8256372,0.00048879,4]
[377335401,1754355033288,-400.0,0.0004888,120]
[377335402,1754355033299,-193.20230314,0.00048887,120]
[377335403,1754355033319,-500.0,0.00048887,120]
[377335404,1754355033329,-371.56092494,0.00048887,2]
[377335405,1754355033339,-185.48831437,0.00048887,31]
[377335406,1754355033349,-500.0,0.00048887,120]
[377335407,1754355033359,-500.0,0.00048887,120]
[377335408,1754355033369,-406.94681043,0.00048887,120]
[377335409,1754355033379,-182.18249473,0.00048887,28]
[377335410,1754355033389,-400.0,0.00048888,120]
[377335411,1754355033398,-400.0,0.00048888,120]
[377335412,1754355033408,-524.1553166,0.00048888,120]
[377335413,1754355033417,-400.0,0.00048888,120]
[377335414,1754355033427,-400.0,0.00048888,120]
[377335415,1754355033438,-400.0,0.00048888,120]
[377335416,1754355033448,-400.0,0.00048888,120]
[377335417,1754355033458,-400.0,0.00048888,120]
[377335418,1754355033468,-400.0,0.00048888,120]
[377335419,1754355033478,-400.0,0.00048888,120]
[377335420,1754355033488,-400.0,0.00048888,120]
[377335421,1754355033499,-400.0,0.00048888,120]
[377335422,1754355033511,-400.0,0.00048888,120]
[377335423,1754355033521,-1322.13,0.00048888,120]
[377335424,1754355033531,-2025.84,0.00048888,120]
[377335425,1754355033541,-400.0,0.00048888,120]
[377335426,1754355033551,-400.0,0.00048888,120]
[377335427,1754355033561,-400.0,0.00048888,120]
[377335428,1754355033571,-400.0,0.00048888,120]
[377335429,1754355033581,-400.0,0.00048888,120]
[377335430,1754355033591,-1769.44,0.00048888,120]
[377335431,1754355033601,-880.09,0.00048888,120]
[377335432,1754355033611,-468.39,0.00048888,120]
[377335433,1754355033621,-400.0,0.00048888,120]
[377335434,1754355033631,-400.0,0.00048888,120]
[377335435,1754355033640,-2651.2,0.00048888,120]
[377335436,1754355033650,-400.0,0.00048888,120]
[377335437,1754355033660,-400.0,0.00048888,120]
[377335438,1754355033670,-1567.63,0.00048888,120]
[377335439,1754355033680,-400.0,0.00048888,120]
[377335440,1754355033691,-821.27,0.00048888,120]
[377335441,1754355033702,-400.0,0.00048888,120]
[377335442,1754355033712,-400.0,0.00048888,120]
[377335443,1754355033722,-1612.19,0.00048888,120]
[377335444,1754355033732,-400.0,0.00048888,120]
[377335445,1754355033744,-400.0,0.00048888,120]
[377335446,1754355033754,-1019.49,0.00048888,120]
[377335447,1754355033765,-400.0,0.00048888,120]
[377335448,1754355033775,-768.01,0.00048888,120]
[377335449,1754355033784,-1933.25,0.00048888,120]
[377335450,1754355033794,-400.0,0.00048888,120]
[377335451,1754355033804,-1577.15,0.00048888,120]
[377335452,1754355033814,-400.0,0.00048888,120]
[377335453,1754355033824,-7396.98289,0.00048888,120]
[377335454,1754355033834,-1507.9,0.00048888,120]
[377335455,1754355033844,-5648.449114,0.00048888,120]
[377335456,1754355033854,-2214.96,0.00048888,120]
[377335457,1754355033864,-415.26,0.00048888,120]
[377335458,1754355033873,-1539.76,0.00048888,120]
[377335459,1754355033883,-7563.206954,0.00048888,120]
[377335460,1754355033893,-400.0,0.00048888,120]
[377335461,1754355033902,-400.0,0.00048888,120]
[377335462,1754355033912,-400.0,0.00048888,120]
[377335463,1754355033923,-1027.51,0.00048888,120]
[377335464,1754355033934,-3978.44,0.00048888,120]
[377335465,1754355033944,-2265.01,0.00048888,120]
[377335466,1754355033954,-642.37,0.00048888,120]
[377335467,1754355033964,-258.524242,0.00048888,120]
[377335468,1754355033974,-400.0,0.00048888,120]
[377335469,1754355033984,-17453.43292086,0.00048888,120]
[377335470,1754355033997,-9082.82707914,0.00048888,120]
[377335471,1754355034007,-1329.66,0.00048888,120]
[377335472,1754355034018,-1004.27,0.00048888,120]
[377335473,1754355034027,-169.006763,0.00048888,120]
[377335474,1754355034037,-1080.87,0.00048888,120]
[377335475,1754355034048,-459.5,0.00048888,120]
[377335476,1754355034058,-400.0,0.00048888,120]
[377335477,1754355034068,-762.05,0.00048888,120]
[377335478,1754355034078,-8076.25,0.00048888,120]
[377335479,1754355034087,-1135.41,0.00048888,120]
[377335480,1754355034097,-1099.03,0.00048888,120]
[377335481,1754355034106,-861.9,0.00048888,120]
[377335482,1754355034116,-1601.84,0.00048888,120]
[377335483,1754355034126,-5459.25,0.00048888,120]
[377335484,1754355034135,-778.03,0.00048888,120]
[377335485,1754355034145,-400.0,0.00048888,120]
[377335486,1754355034155,-1206.81,0.00048888,120]
[377335487,1754355034165,-671.74,0.00048888,120]